bitfinex/quotes_ETHUSD_20260313
["timestamp","ask_amount","ask_price","bid_price","bid_amount"]
[1773384473331,0.001,2093.7,2093.5,0.0011]
[1773384473699,1.69221826,2093.9,2093.5,0.0011]
[1773384474198,0.001,2093.8,2093.5,0.0011]
[1773384474801,0.49923219,2093.8,2093.5,0.0011]
[1773384475333,1.69323352,2093.8,2093.7,0.0011]
[1773384479428,1.69323352,2093.8,2093.5,0.04886689]
[1773384479633,1.69323352,2093.8,2093.5,0.0011]
[1773384479928,0.49823219,2093.7,2093.5,0.0011]
[1773384480335,0.49923219,2093.7,2093.5,0.0011]
[1773384480533,1.19400998,2093.8,2093.2,0.0011]
[1773384480534,0.49823219,2093.5,2093.2,0.0011]
[1773384480905,0.49823219,2093.3,2093.2,0.0011]
[1773384481105,0.49823219,2093.3,2092.9,1.576]
[1773384482126,0.49823219,2093.7,2093.0,0.35031995]
[1773384482335,0.49823219,2093.7,2093.1,2.09554165]
[1773384482336,0.49923219,2093.6,2093.1,2.09554165]
[1773384482509,0.49923219,2093.6,2093.1,1.793]
[1773384483018,0.49823219,2093.4,2093.1,1.793]
[1773384483633,0.49823219,2093.5,2093.1,1.793]
[1773384483835,0.001,2093.4,2093.2,0.04777374]
[1773384484044,0.001,2093.4,2093.1,2.14331767]
[1773384484336,0.001,2093.4,2093.1,1.84077602]
[1773384484918,1.19522948,2093.4,2093.1,1.84077602]
[1773384485118,1.19522948,2093.4,2093.1,1.793]
[1773384486247,0.49823219,2093.3,2093.1,1.793]
[1773384487120,1.69257537,2093.3,2092.9,1.62378059]
[1773384487316,0.001,2093.2,2092.9,1.576]
[1773384487521,0.49923219,2093.2,2092.9,1.576]
[1773384487716,0.49923219,2093.2,2093.1,0.0011]
[1773384488132,0.50023219,2093.2,2093.1,0.0011]
[1773384488441,0.49923219,2093.2,2093.1,0.0011]
[1773384489238,1.69357577,2093.2,2093.1,0.0011]
[1773384491949,1.69457577,2093.2,2093.1,0.0011]
[1773384494253,1.19634358,2093.2,2093.1,0.0011]
[1773384496031,0.002,2093.2,2093.1,0.0011]
[1773384496939,0.002,2093.2,2092.9,3.41688059]
[1773384496940,0.50023219,2093.2,2092.9,3.41688059]
[1773384497254,0.49823219,2093.1,2092.6,0.0011]
[1773384497461,0.49923219,2093.1,2092.6,0.0011]
[1773384498252,1.19445771,2093.0,2092.6,1.7911]
[1773384498455,1.6926899,2093.0,2092.6,1.7911]
[1773384498864,1.6926899,2093.0,2092.6,1.83888744]
[1773384499249,1.6926899,2093.0,2092.6,1.7911]
[1773384499951,1.6926899,2093.0,2092.7,0.30364165]
[1773384499952,0.001,2092.9,2092.7,0.30364165]
[1773384500153,0.001,2092.9,2092.7,0.3514268]
[1773384500553,0.001,2092.9,2092.7,0.30364165]
[1773384501665,0.001,2092.9,2092.6,1.7911]
[1773384501863,0.001,2092.9,2092.6,2.98577663]
[1773384504964,0.001,2092.9,2092.6,3.28941828]
[1773384505468,0.001,2093.1,2092.7,0.3514268]
[1773384505678,0.001,2093.2,2092.8,0.4002939]
[1773384505842,1.68789307,2093.2,2092.9,0.04778059]
[1773384506159,0.49354701,2093.2,2092.9,0.04778059]
[1773384506357,1.68789214,2093.2,2092.9,0.04778059]
[1773384506573,0.49354701,2093.2,2092.9,0.04778059]
[1773384506756,0.001,2093.2,2092.9,1.64255083]
[1773384506961,0.001,2093.2,2092.9,0.44807449]
[1773384508743,0.49254701,2093.0,2092.6,1.19574443]
[1773384508937,1.74765314,2093.2,2092.8,1.788]
[1773384509275,0.49354701,2093.2,2092.9,0.02389714]
[1773384510066,1.6878959,2093.2,2092.9,0.02389714]
[1773384510273,0.49254701,2093.1,2092.8,1.788]
[1773384511196,1.68695684,2093.1,2092.8,1.788]
[1773384512680,0.49254701,2093.0,2092.8,1.788]
[1773384513244,1.19440983,2093.1,2092.8,1.788]
[1773384513666,1.19440983,2093.1,2093.0,0.0011]
[1773384515785,1.68695684,2093.1,2093.0,0.0011]
[1773384515955,1.68695684,2093.1,2092.6,4.77984195]
[1773384515956,0.49254701,2093.0,2092.6,0.0011]
[1773384516156,0.49254701,2092.7,2092.3,0.0011]
[1773384516854,0.49254701,2092.7,2092.3,0.02502683]
[1773384517055,0.49254701,2092.7,2092.3,1.81302683]
[1773384517278,0.49254701,2092.7,2092.3,1.7891]
[1773384517883,0.49254701,2092.5,2092.3,1.7891]
[1773384518180,1.19468603,2092.6,2092.3,1.7891]
[1773384518375,1.68723304,2092.6,2092.3,1.7891]
[1773384518559,0.49254701,2092.5,2092.3,1.7891]
[1773384520293,1.68729359,2092.5,2092.3,1.7891]
[1773384520461,0.49254701,2092.4,2092.3,1.7891]
[1773384523368,1.19474658,2092.5,2092.3,1.7891]
[1773384523889,1.25441117,2092.7,2092.3,2.1893939]
[1773384524092,1.25434863,2092.8,2092.4,0.42421959]
[1773384524277,1.25434863,2092.8,2092.4,0.02392569]
[1773384524278,1.67996173,2092.8,2092.4,0.02392569]
[1773384524476,0.48534169,2092.7,2092.5,0.5]
[1773384525187,0.48534169,2092.7,2092.3,1.7891]
[1773384526183,1.67999753,2092.7,2092.3,1.7891]
[1773384526667,1.67999753,2092.7,2092.5,0.0011]
[1773384528894,1.68091261,2092.9,2092.5,0.0011]
[1773384529076,0.48534169,2092.8,2092.5,0.0011]
[1773384529490,0.54507028,2092.8,2092.5,0.0011]
[1773384531006,1.19462894,2092.7,2092.5,0.0011]
[1773384531206,1.66295282,2092.7,2092.5,0.0011]
[1773384531407,0.46832388,2092.7,2092.5,0.0011]
[1773384535308,0.001,2092.9,2092.6,0.4002939]
[1773384535483,0.46832388,2092.7,2092.5,0.0011]
[1773384535685,0.52805532,2092.7,2092.5,0.0011]
[1773384537212,1.66300991,2092.6,2092.5,0.0011]
[1773384538008,0.46832388,2092.6,2092.5,0.0011]
[1773384538512,0.46832388,2092.6,2092.1,0.0011]
[1773384538812,0.46832388,2092.6,2092.1,0.4013939]
[1773384538999,0.46832388,2092.6,2092.1,1.62027763]
[1773384539313,1.66406701,2092.5,2092.1,0.0011]
[1773384539613,1.66406701,2092.5,2092.1,1.7831]
[1773384539786,1.66406701,2092.5,2092.2,0.0011]
[1773384539981,0.46832388,2092.4,2092.2,0.0011]
[1773384540180,0.46832388,2092.2,2091.5,0.4002939]
[1773384540408,0.46832388,2092.0,2091.5,1.5956081]
[1773384541383,1.1950858,2091.9,2091.6,1.777]
[1773384541624,1.1950858,2091.9,2090.8,4.78276499]
[1773384541625,2.47513693,2091.9,2091.3,0.4002939]
[1773384541788,0.46832388,2091.8,2091.3,1.59571492]
[1773384541989,0.46832388,2091.8,2091.3,0.4002939]
[1773384542191,0.5,2091.6,2091.0,3.036305]
[1773384542397,0.5,2091.6,2091.1,0.02399539]
[1773384542585,0.5,2091.6,2091.0,2.821687]
[1773384542783,0.5,2091.6,2090.9,0.02399539]
[1773384542784,0.5,2091.6,2091.1,0.02399769]
[1773384543012,0.5,2091.6,2091.0,3.018987]
[1773384543214,0.5,2091.6,2091.2,1.778]
[1773384543831,0.5,2091.4,2091.2,1.778]
[1773384544714,0.5,2091.4,2091.0,1.19559616]
[1773384544923,0.5,2091.4,2090.8,1.19567437]
[1773384545096,0.5,2091.2,2090.7,1.778]
[1773384545501,0.5,2091.2,2090.7,2.99778474]
[1773384546602,0.5,2091.1,2090.7,2.99778474]
[1773384547290,0.5,2091.1,2090.7,1.80201598]
[1773384547492,0.5,2091.1,2090.7,2.99778718]
[1773384548610,0.5,2091.5,2090.7,3.80951443]
[1773384548809,0.5,2091.4,2090.7,2.9737712]
[1773384550024,0.5,2091.2,2090.7,2.9737712]
[1773384550199,0.5,2091.2,2090.7,1.778]
[1773384550718,0.5,2091.2,2090.7,2.97376728]
[1773384551019,0.5,2091.2,2090.7,1.778]
[1773384551821,0.5,2091.2,2090.9,0.0011]
[1773384552590,0.5,2091.1,2090.9,0.0011]
[1773384554125,0.5,2091.1,2090.7,1.20892236]
[1773384555336,0.5,2091.1,2090.8,1.781]
[1773384558204,0.5,2091.1,2090.6,4.78440798]
[1773384558205,0.5,2091.0,2090.6,1.19692161]
[1773384558431,0.55978,2091.0,2090.6,1.19692161]
[1773384558934,0.55978,2091.0,2090.6,0.0011]
[1773384559432,0.55978,2091.0,2090.7,1.781]
[1773384559630,0.5,2090.9,2090.7,1.781]
[1773384560334,0.5,2090.9,2090.6,0.0011]
[1773384560633,0.5,2090.6,2090.2,2.97705325]
[1773384560930,0.5,2090.7,2090.3,0.02404572]
[1773384561138,0.5,2090.7,2090.2,2.97705325]
[1773384561618,0.5,2090.7,2090.2,2.97703243]
[1773384562142,0.5,2090.7,2090.2,1.781]
[1773384562307,0.5,2090.7,2090.2,3.0011]
[1773384562816,1.69578583,2090.7,2090.2,3.0011]
[1773384563942,1.69578583,2090.7,2090.6,0.0011]
[1773384564314,0.5,2090.7,2090.6,0.0011]
[1773384564508,0.001,2090.9,2090.6,0.02513084]
[1773384564708,1.696667,2090.9,2090.6,0.0011]
[1773384564908,0.501,2090.9,2090.6,0.0011]
[1773384565111,0.5,2090.8,2090.6,0.0011]
[1773384565333,0.55978572,2090.8,2090.6,0.0011]
[1773384565547,0.55978572,2090.8,2090.4,0.0011]
[1773384566325,0.49945,2090.6,2090.4,0.0011]
[1773384571714,0.49945,2090.5,2090.4,0.0011]
[1773384573450,2.56854691,2090.7,2090.4,0.0011]
[1773384573647,1.75505701,2090.7,2090.4,0.0011]
[1773384573850,0.49945,2090.6,2090.4,0.0011]
[1773384574322,0.0597943,2090.5,2090.4,0.0011]
[1773384575471,0.001,2090.9,2090.4,0.8145899]
[1773384575640,0.05977143,2091.3,2090.7,0.8134899]
[1773384575839,0.55976857,2091.4,2090.8,1.782]
[1773384576051,0.001,2091.6,2091.1,0.8134899]
[1773384576648,0.5,2092.0,2091.1,0.8134899]
[1773384576843,0.5,2092.0,2091.2,1.19548584]
[1773384577550,0.55975143,2092.0,2091.2,1.19548584]
[1773384578748,0.5,2091.7,2091.0,5.3867]
[1773384578953,0.55976,2091.7,2091.0,4.531281]
[1773384579152,0.5,2091.7,2091.0,5.3447709]
[1773384579460,0.5,2091.7,2091.0,0.8134899]
[1773384579656,0.5,2092.0,2091.0,4.706937]
[1773384579860,0.55975429,2091.9,2091.0,4.706937]
[1773384580854,0.5,2091.8,2091.1,1.19554301]
[1773384581054,0.55975714,2091.8,2091.1,1.19554301]
[1773384583360,0.5,2091.7,2091.0,1.19560019]
[1773384583559,0.55976286,2091.6,2090.9,1.19561132]
[1773384584957,0.55976286,2091.6,2090.8,2.97766904]
[1773384587762,0.5,2091.4,2091.0,1.19560019]
[1773384587969,0.55976857,2091.4,2091.0,1.19560019]
[1773384588864,0.56076857,2091.4,2091.0,1.19560019]
[1773384589434,0.501,2091.4,2091.0,1.19560019]
[1773384590370,0.501,2091.4,2090.9,4.7826069]
[1773384590659,1.19637749,2091.4,2090.9,1.19565737]
[1773384590843,0.5,2091.3,2090.9,1.19565737]
[1773384591630,0.5,2091.3,2091.0,1.78]
[1773384594769,0.5,2091.3,2091.0,2.97559667]
[1773384595871,0.5,2091.2,2091.0,1.78]
[1773384596772,1.19550686,2091.2,2091.0,1.78]
[1773384596947,0.5,2091.1,2091.0,1.78]
[1773384597843,0.001,2091.4,2091.0,2.97559961]
[1773384598043,0.5,2091.3,2091.0,1.78]
[1773384598865,0.5,2091.1,2090.6,0.0011]
[1773384599246,0.5,2091.1,2090.6,0.02622183]
[1773384600172,0.5,2091.1,2090.7,1.78]
[1773384600372,0.5,2091.1,2090.8,0.02511717]
[1773384600577,1.69543525,2091.3,2090.8,0.02511717]
[1773384600961,4.78251037,2091.4,2090.8,0.02511717]
[1773384600962,0.5,2091.2,2090.8,1.22079137]
[1773384601272,0.5,2091.2,2091.0,0.0011]
[1773384601476,0.5,2091.1,2090.8,0.0011]
[1773384601646,0.06076857,2091.4,2090.8,0.0011]
[1773384601647,0.5,2090.9,2090.8,0.0011]
[1773384602685,0.5,2090.9,2090.6,0.0011]
[1773384602879,0.5,2090.7,2090.6,0.0011]
[1773384605167,0.49945,2090.6,2090.4,0.0011]
[1773384606487,1.69521042,2090.8,2090.5,1.78]
[1773384607058,0.49945,2090.7,2090.5,1.78]
[1773384608884,0.49945,2090.7,2090.4,0.0011]
[1773384609065,0.49945,2090.5,2090.4,0.0011]
[1773384609265,4.84219627,2091.0,2090.4,0.0011]
[1773384609266,0.49945,2090.7,2090.4,0.0011]
[1773384610282,1.69522439,2090.7,2090.5,1.779]
[1773384610988,0.49945,2090.6,2090.5,1.779]
[1773384611688,0.49945,2090.5,2090.4,0.0011]
[1773384613015,0.49945,2090.6,2090.4,0.0011]
[1773384613381,0.49945,2090.6,2090.4,1.7801]
[1773384614602,0.001,2090.7,2090.4,2.97713789]
[1773384614765,0.001,2090.7,2090.5,0.02513884]
[1773384614962,0.49945,2090.8,2090.5,0.02513884]
[1773384615191,0.49945,2091.2,2090.6,0.0011]
[1773384615495,0.55922715,2091.1,2090.7,0.5]
[1773384615665,0.49945,2091.0,2090.7,0.5]
[1773384617176,0.49945,2091.0,2090.7,1.69576778]
[1773384617392,0.49945,2091.0,2090.7,0.5]
[1773384617901,0.49945,2090.9,2090.7,0.5]
[1773384618305,0.55923286,2090.9,2090.4,1.7801]
[1773384618505,0.45796196,2091.3,2090.7,0.46869634]
[1773384618811,0.45796196,2091.3,2090.5,0.46869634]
[1773384618812,0.49262886,2091.2,2090.5,0.46869634]
[1773384619102,0.45796196,2091.1,2090.4,1.7801]
[1773384619309,0.45796196,2090.9,2090.4,1.7801]
[1773384619492,0.49262886,2090.8,2090.4,1.7801]
[1773384620197,0.49262886,2090.8,2090.4,2.9760427]
[1773384620370,0.45796196,2090.6,2090.4,1.7801]
[1773384620986,0.47855968,2090.8,2090.4,2.97603675]
[1773384621176,0.47855968,2090.8,2090.4,1.7801]
[1773384621377,0.51322658,2090.8,2090.4,1.82793773]
[1773384621587,0.51322658,2090.8,2090.4,1.7801]
[1773384621802,0.47855968,2090.7,2090.4,1.7801]
[1773384622880,1.1957635,2090.8,2090.4,2.27355013]
[1773384623281,1.2304304,2090.8,2090.4,2.27355013]
[1773384623481,1.1957635,2090.8,2090.4,2.27355013]
[1773384623884,0.47855968,2090.8,2090.4,1.7801]
[1773384625611,0.47855968,2090.8,2090.4,1.82793773]
[1773384625906,0.47855968,2090.8,2090.6,0.0011]
[1773384626109,1.70892018,2090.9,2090.6,0.0011]
[1773384626412,1.67425328,2090.9,2090.6,0.0011]
[1773384628799,1.1956936,2090.9,2090.6,0.0011]
[1773384628998,0.001,2091.0,2090.6,0.54238328]
[1773384629383,0.47955968,2091.4,2090.7,0.49345013]
[1773384629610,0.0346669,2091.3,2090.9,0.49345013]
[1773384629803,0.47955968,2091.4,2091.1,0.49345013]
[1773384629804,2.8203025,2091.4,2091.1,0.49345013]
[1773384630003,0.001,2091.4,2091.1,0.49345013]
[1773384630211,0.60089307,2091.7,2091.2,0.49345013]
[1773384630387,4.01378994,2091.9,2091.2,0.49345013]
[1773384630590,0.34967629,2092.1,2091.5,0.49345013]
[1773384630901,0.60089307,2092.0,2091.6,2.27045013]
[1773384631076,0.60089307,2092.0,2091.7,0.49345013]
[1773384631282,0.60089307,2092.0,2091.6,1.777]
[1773384631703,0.60089307,2092.0,2091.6,2.27045013]
[1773384631982,1.54465972,2092.1,2091.7,0.49345013]
[1773384632184,2.14555279,2092.1,2091.7,0.49345013]
[1773384632379,0.24861525,2092.1,2091.6,2.97225106]
[1773384632584,4.00952184,2092.5,2091.7,0.49345013]
[1773384632784,4.00952184,2092.5,2091.8,0.49345013]
[1773384632785,0.60089307,2092.3,2091.8,0.49345013]
[1773384633223,1.19574852,2092.5,2091.6,2.27045013]
[1773384633224,0.47855968,2092.1,2091.6,2.27045013]
[1773384633383,0.47855968,2092.1,2091.6,1.777]
[1773384633583,1.67356987,2092.1,2091.6,2.27045013]
[1773384634482,0.47855968,2091.9,2091.6,1.777]
[1773384635386,0.60089307,2091.8,2091.6,1.777]
[1773384635585,1.79607825,2091.8,2091.6,1.777]
[1773384636105,0.60089307,2091.7,2091.6,1.777]
[1773384636707,2.03102808,2092.2,2091.6,1.777]
[1773384636708,0.001,2092.5,2091.8,0.30055]
[1773384637711,0.001,2092.5,2092.0,0.30055]
[1773384637888,0.001,2092.5,2092.1,2.53439745]
[1773384638094,0.001,2092.5,2092.2,0.30055]
[1773384638289,0.001,2092.5,2092.4,0.30055]
[1773384639118,0.001,2092.5,2092.3,1.776]
[1773384639634,0.001,2092.5,2092.3,2.97082662]
[1773384640720,0.001,2092.5,2092.3,2.97084926]
[1773384641042,0.001,2092.5,2092.3,1.776]
[1773384641545,0.001,2092.5,2092.3,2.9708521]
[1773384641846,1.67411374,2092.9,2092.3,2.9708521]
[1773384642049,0.001,2092.9,2092.4,0.29955]
[1773384643113,0.47855968,2093.7,2092.8,0.29955]
[1773384643318,0.47855968,2093.6,2092.6,0.29955]
[1773384643537,0.47855968,2093.6,2092.8,0.29955]
[1773384643749,0.47855968,2093.6,2093.1,1.19440064]
[1773384644058,1.6726792,2093.6,2093.1,2.96940064]
[1773384644262,1.19411952,2093.6,2093.1,2.07455]
[1773384645718,4.77626528,2093.7,2093.1,3.26891437]
[1773384645931,1.19405836,2093.7,2093.1,3.26891437]
[1773384646433,1.66603544,2093.7,2093.1,3.26894424]
[1773384646838,1.66603544,2093.7,2093.1,2.07455]
[1773384647151,1.66603544,2093.7,2093.1,3.26894349]
[1773384647851,0.47197708,2093.6,2093.1,1.775]
[1773384648476,1.1940464,2093.8,2093.2,0.29955]
[1773384649524,0.001,2094.0,2093.3,0.29955]
[1773384649955,0.001,2094.0,2093.5,0.29955]
[1773384650473,0.47297708,2094.0,2093.5,0.29955]
[1773384652151,0.49668863,2093.9,2093.1,2.07455]
[1773384652350,0.49668863,2093.9,2093.1,3.26892159]
[1773384652652,0.49668863,2093.9,2093.2,0.29955]
[1773384652847,1.19492371,2094.0,2093.2,0.29955]
[1773384653423,0.49668863,2093.9,2093.2,0.29955]
[1773384654031,0.49668863,2093.7,2093.2,1.49388967]
[1773384654259,0.49668863,2093.7,2093.3,0.04777146]
[1773384654469,0.49668863,2093.7,2093.2,1.49388967]
[1773384654770,1.19400133,2093.8,2093.3,0.29955]
[1773384655270,1.69068996,2093.8,2093.2,1.19433967]
[1773384655471,0.49668863,2093.7,2093.1,3.26891089]
[1773384656765,0.49668863,2093.7,2093.2,1.77]
[1773384656766,0.49668863,2093.6,2093.2,1.77]
[1773384657441,4.77601261,2093.8,2093.2,1.77]
[1773384657442,1.69074329,2093.8,2093.3,0.04777146]
[1773384657772,1.69074329,2093.8,2093.2,2.06955]
[1773384658375,1.69074329,2093.8,2093.3,0.29955]
[1773384659273,1.69074329,2093.8,2093.3,1.49382978]
[1773384659668,0.49668863,2093.7,2093.2,2.96429758]
[1773384659872,0.49668863,2093.7,2093.2,1.77]
[1773384660480,0.49668863,2093.7,2093.2,2.96433986]
[1773384660777,1.19411539,2093.6,2093.2,2.96433986]
[1773384661269,1.69078763,2093.7,2093.2,2.96430859]
[1773384661574,1.69078763,2093.7,2093.2,1.77]
[1773384661773,0.49668863,2093.6,2093.2,1.77]
[1773384662781,0.49668863,2093.6,2093.2,2.96431558]
[1773384662987,1.69063294,2093.9,2093.3,0.34732146]
[1773384663584,1.69063294,2093.9,2093.3,0.34842146]
[1773384663762,0.001,2093.5,2093.3,0.34842146]
[1773384664178,0.001,2093.5,2093.3,0.30065]
[1773384665294,0.001,2093.5,2093.4,1.19422948]
[1773384665894,0.001,2093.5,2093.3,1.1953507]
[1773384666270,0.001,2093.5,2093.3,1.4949007]
[1773384668308,0.49768863,2093.5,2093.0,0.0011]
[1773384669163,1.69091811,2093.4,2093.0,0.0011]
[1773384669409,1.69091811,2093.4,2092.8,4.77938711]
[1773384669410,0.49668863,2093.3,2092.8,0.0011]
[1773384669721,0.49668863,2093.3,2093.0,1.756]
[1773384671121,0.49668863,2093.3,2092.8,0.0011]
[1773384671325,0.49668863,2093.1,2092.8,0.0011]
[1773384671515,0.49668863,2093.1,2092.4,1.49541651]
[1773384672232,0.49668863,2093.1,2092.4,1.19479373]
[1773384672401,0.49668863,2093.1,2092.5,1.762]
[1773384672598,0.49668863,2093.1,2092.5,1.80978972]
[1773384673198,1.69118743,2093.0,2092.5,3.3051556]
[1773384673399,1.1944988,2093.0,2092.5,3.3051556]
[1773384673586,1.6911252,2093.1,2092.5,3.3051556]
[1773384674315,0.49668863,2093.0,2092.5,3.3051556]
[1773384674523,0.49668863,2093.0,2092.5,1.762]
[1773384674684,0.49668863,2093.0,2092.5,3.25739134]
[1773384674890,1.19443657,2093.1,2092.6,0.04778744]
[1773384675293,1.19443657,2093.1,2092.6,1.24243094]
[1773384675493,0.49668863,2093.2,2092.6,1.54308094]
[1773384675920,0.49668863,2093.2,2092.7,0.30065]
[1773384676107,0.001,2093.5,2092.9,0.30065]
[1773384676418,0.001,2093.5,2093.0,0.0477783]
[1773384676597,0.001,2093.5,2093.1,1.768]
[1773384676598,0.001,2093.4,2093.1,1.768]
[1773384676804,0.001,2093.4,2093.2,0.04777373]
[1773384677527,0.001,2093.4,2093.2,1.24211482]
[1773384677938,0.001,2093.4,2093.2,1.19434109]
[1773384678618,0.001,2093.4,2093.2,1.24211483]
[1773384678817,0.001,2093.4,2093.2,1.19434109]
[1773384679013,0.001,2093.4,2093.2,0.04777374]
[1773384679408,0.001,2093.4,2093.1,3.26302874]
[1773384680016,0.001,2093.4,2093.1,2.96238752]
[1773384680993,0.46815048,2093.9,2093.1,3.26203752]
[1773384681423,0.46815048,2093.8,2093.1,3.26203752]
[1773384682225,0.46815048,2093.8,2093.2,0.29965]
[1773384682424,0.46815048,2093.8,2093.2,0.3144292]
[1773384683629,0.46815048,2093.8,2093.3,1.19428653]
[1773384685201,0.46815048,2093.8,2093.2,1.19430913]
[1773384685202,0.46815048,2093.7,2093.2,1.19430913]
[1773384685534,0.46815048,2093.6,2093.2,1.19430913]
[1773384687409,1.19417243,2093.5,2093.1,1.768]
[1773384687611,0.46815048,2093.7,2093.1,2.96239677]
[1773384689022,0.46815048,2093.7,2093.1,2.96239227]
[1773384689545,0.46815048,2093.7,2093.1,1.768]
[1773384689546,0.46815048,2093.5,2093.1,1.768]
[1773384689717,0.46915048,2093.5,2093.1,1.768]
[1773384690616,0.001,2093.5,2093.1,3.26200882]
[1773384691105,0.46915048,2093.5,2093.1,2.96235882]
[1773384692109,0.001,2093.5,2093.1,3.26200882]
[1773384693509,0.001,2093.5,2093.2,0.29965]
[1773384696136,0.001,2093.5,2093.3,1.19428653]
[1773384697512,0.001,2093.5,2093.3,1.49393653]
[1773384698038,1.66308086,2094.0,2093.4,0.29965]
[1773384698234,1.66308086,2094.0,2093.5,1.19417243]
[1773384698434,1.66308086,2094.0,2093.6,1.783]
[1773384698616,0.46915048,2094.0,2093.6,1.783]
[1773384699345,0.46815048,2093.9,2093.6,1.783]
[1773384699929,0.46815048,2093.9,2093.3,1.19425107]
[1773384700448,0.46815048,2093.7,2093.2,1.19434358]
[1773384701249,0.46815048,2093.7,2093.3,1.784]
[1773384702134,0.46815048,2093.7,2093.3,1.7851]
[1773384702335,0.46915048,2093.7,2093.4,1.19422948]
[1773384702535,0.001,2093.7,2093.5,0.29965]
[1773384702935,0.001,2094.0,2093.5,0.29965]
[1773384703518,0.46815048,2093.9,2093.3,3.27900627]
[1773384704054,0.46815048,2093.9,2093.3,2.97935627]
[1773384704231,0.46815048,2093.9,2093.4,0.31341632]
[1773384705340,0.46815048,2093.9,2093.5,1.19417243]
[1773384705542,0.46815048,2093.9,2093.6,0.013765]
[1773384707348,1.19394769,2093.9,2093.4,1.4938355]
[1773384707551,0.47948333,2093.8,2093.4,1.1941855]
[1773384709355,1.19394769,2093.9,2093.4,1.4938355]
[1773384709861,1.67343102,2093.9,2093.4,1.4938355]
[1773384710155,0.47948333,2093.8,2093.4,1.4938355]
[1773384710456,0.47948333,2093.8,2093.4,1.1941855]
[1773384711254,0.47948333,2093.8,2093.5,0.04463891]
[1773384711449,0.47288238,2094.0,2093.6,1.19411539]
[1773384711838,0.47188238,2093.9,2093.5,1.19414212]
[1773384712158,0.47188238,2093.9,2093.6,0.0138259]
[1773384712358,0.47188238,2093.9,2093.5,0.0138259]
[1773384713362,0.47188238,2093.9,2093.4,1.19418893]
[1773384713554,0.47188238,2093.8,2093.4,1.19418893]
[1773384714638,0.47188238,2093.8,2093.5,0.02339663]
[1773384714839,0.47188238,2093.8,2093.6,0.0011]
[1773384715035,0.47188238,2093.6,2093.3,1.7851]
[1773384715240,0.47188238,2093.6,2093.3,2.97938029]
[1773384715543,0.47188238,2093.6,2093.4,0.0011]
[1773384716758,1.66599961,2093.6,2093.4,0.0011]
[1773384716965,0.47188238,2093.5,2093.4,0.0011]
[1773384717263,1.66697764,2093.7,2093.4,0.0011]
[1773384717455,0.47288238,2093.7,2093.4,0.0011]
[1773384717653,0.001,2093.7,2093.4,0.0011]
[1773384719068,0.47288238,2093.7,2093.4,0.0011]
[1773384719539,1.19411539,2093.6,2093.4,0.0011]
[1773384719734,0.47188238,2093.5,2093.4,0.0011]
[1773384720563,0.47188238,2093.5,2093.1,0.0011]
[1773384720953,0.47188238,2093.5,2093.1,1.19548508]
[1773384721571,1.66606239,2093.5,2093.1,0.0011]
[1773384721773,1.66606239,2093.5,2093.2,1.79]
[1773384722073,0.47188238,2093.5,2093.2,1.79]
[1773384723144,1.66607076,2093.5,2093.2,1.79]
[1773384724168,0.47188238,2093.4,2093.2,1.79]
[1773384724869,0.47188238,2093.4,2093.1,0.0011]
[1773384726372,0.47188238,2093.2,2093.1,0.0011]
[1773384726763,1.19426451,2093.4,2093.1,0.0011]
[1773384726971,0.47188238,2093.4,2093.1,0.0011]
[1773384727283,1.66612459,2093.4,2093.1,0.0011]
[1773384727573,1.66612459,2093.4,2093.3,0.0011]
[1773384727779,0.47188238,2093.3,2093.1,0.0011]
[1773384728267,1.66622596,2093.2,2093.1,0.0011]
[1773384730556,0.47188238,2093.1,2092.8,0.0011]
[1773384732274,0.47188238,2092.9,2092.2,1.49891902]
[1773384732473,0.47188238,2092.9,2092.2,1.19596902]
[1773384732649,0.47188238,2092.9,2092.2,1.49891902]
[1773384733451,0.47188238,2092.9,2092.4,1.785]
[1773384734382,0.47188238,2092.7,2092.4,1.785]
[1773384735284,0.47188238,2092.7,2092.4,2.97979803]
[1773384735672,0.47188238,2092.7,2092.4,3.02759003]
[1773384736065,1.66643846,2092.9,2092.4,3.28274803]
[1773384737086,1.66643846,2092.9,2092.4,2.97979803]
[1773384737269,0.47188238,2093.0,2092.5,0.30405]
[1773384737584,0.47188238,2093.0,2092.5,0.35183972]
[1773384738575,0.47188238,2093.0,2092.5,0.30405]
[1773384739576,0.47188238,2092.9,2092.6,0.04778744]
[1773384740160,1.1945062,2093.0,2092.7,0.0011]
[1773384740359,1.66638858,2093.0,2092.7,0.0011]
[1773384744753,0.46591942,2092.9,2092.7,0.0011]
[1773384745003,0.46591942,2092.8,2092.7,0.0011]
[1773384745165,0.46591942,2092.8,2092.5,0.0011]
[1773384745694,1.66049171,2092.8,2092.5,0.04888972]
[1773384746064,0.46591942,2092.8,2092.5,0.04888972]
[1773384746760,0.46591942,2093.0,2092.6,1.49763603]
[1773384747071,0.48931605,2093.0,2092.6,1.49763603]
[1773384748075,0.001,2093.3,2092.8,0.30295]
[1773384749962,0.001,2093.7,2093.2,0.30195]
[1773384750158,0.001,2093.7,2093.4,0.30195]
[1773384750459,0.001,2094.0,2093.5,0.30195]
[1773384750797,0.001,2094.0,2093.6,0.30195]
[1773384752010,0.001,2094.0,2093.7,1.19405836]
[1773384752313,0.001,2094.0,2093.8,0.30195]
[1773384752515,0.001,2094.0,2093.9,1.785]
[1773384757601,0.001,2094.0,2093.9,2.97894431]
[1773384761070,0.001,2094.0,2093.9,1.785]
[1773384761252,0.46691942,2094.0,2093.9,1.785]
[1773384761452,0.46691942,2094.0,2093.6,1.24188]
[1773384761765,0.001,2094.0,2093.6,1.54383]
[1773384761963,0.001,2094.0,2093.7,0.30195]
[1773384762568,0.001,2094.0,2093.8,1.786]
[1773384763538,0.46591942,2093.6,2092.5,0.0011]
[1773384763824,0.46591942,2092.9,2092.5,0.0011]
[1773384764193,0.46591942,2092.9,2092.5,0.46178425]
[1773384764578,0.46591942,2092.9,2092.6,1.737]
[1773384764811,0.96631942,2092.9,2092.6,1.737]
[1773384765017,0.46591942,2092.9,2092.6,1.737]